bitfinex/quotes_ETHUSD_20260209
["timestamp","ask_amount","ask_price","bid_price","bid_amount"]
[1770662637612,3.44026317,2131.2,2130.0,1.17366536]
[1770662637912,3.11947817,2131.2,2130.0,1.17366536]
[1770662638121,3.11947817,2131.2,2130.0,4.43060023]
[1770662638670,3.44026317,2131.5,2130.1,3.25693487]
[1770662638812,3.44026317,2131.5,2130.2,3.25693487]
[1770662639013,3.44026317,2131.5,2130.1,3.279]
[1770662639424,1.23376664,2131.4,2130.2,1.17359872]
[1770662639631,3.44026317,2131.3,2130.2,1.17359872]
[1770662641706,3.44026317,2131.1,2129.5,3.9724]
[1770662641909,1.17304804,2131.2,2129.9,1.17374372]
[1770662641910,3.44026317,2130.9,2129.9,1.17374372]
[1770662642153,3.44026317,2130.9,2130.1,1.17364839]
[1770662642552,3.279,2131.0,2130.1,1.17364839]
[1770662642945,1.17303479,2131.3,2130.2,3.25693487]
[1770662643257,1.17303479,2131.3,2130.4,0.001]
[1770662643472,0.002,2131.3,2130.4,0.001]
[1770662643629,0.002,2131.3,2130.4,3.25793487]
[1770662643829,0.002,2131.3,2130.5,1.17343346]
[1770662644237,3.44226317,2131.3,2130.4,0.001]
[1770662644440,3.44226317,2131.3,2130.4,1.17446611]
[1770662644667,0.002,2131.3,2130.4,1.17446611]
[1770662645973,0.002,2131.3,2130.4,0.001]
[1770662646188,3.44226317,2131.3,2130.4,0.001]
[1770662648256,4.61331121,2131.2,2130.4,0.001]
[1770662648665,3.44026317,2131.1,2130.4,0.001]
[1770662650368,1.17315814,2131.0,2130.4,0.001]
[1770662650556,1.17304804,2131.2,2130.4,0.001]
[1770662651179,1.17503391,2131.3,2130.4,0.001]
[1770662653077,4.61529708,2131.3,2130.4,0.001]
[1770662653487,0.002,2131.3,2130.4,3.25793487]
[1770662654660,0.002,2131.3,2130.5,1.17343346]
[1770662655673,3.35934691,2131.3,2130.4,1.17445074]
[1770662655882,1.01211204,2131.2,2130.4,1.17445074]
[1770662656058,3.35934691,2131.3,2130.6,0.001]
[1770662656265,1.01211339,2131.2,2130.6,0.001]
[1770662656465,3.35934691,2131.3,2130.6,0.001]
[1770662656671,1.17315814,2131.0,2130.6,0.001]
[1770662657080,3.35734691,2130.8,2130.4,0.001]
[1770662658782,1.17332332,2130.7,2130.4,0.001]
[1770662659300,4.6929328,2130.9,2130.4,0.001]
[1770662659502,1.17321319,2130.9,2130.4,0.001]
[1770662659704,4.45219609,2131.0,2130.4,0.001]
[1770662659877,1.0116468,2130.9,2130.4,0.001]
[1770662660077,3.4389683,2130.9,2130.4,0.001]
[1770662660800,1.01157445,2130.8,2130.4,0.001]
[1770662661105,3.4389683,2130.6,2130.1,0.001]
[1770662663112,1.17343346,2130.5,2130.1,0.001]
[1770662664806,7.89140176,2130.5,2130.1,0.001]
[1770662665178,4.45243346,2130.5,2130.1,0.001]
[1770662668379,1.17307722,2131.2,2130.1,3.51271526]
[1770662669196,1.17307722,2131.2,2130.1,1.17461627]
[1770662669197,3.4389683,2131.1,2130.1,1.17461627]
[1770662669396,1.17307722,2131.2,2130.3,0.001]
[1770662669706,1.17307722,2131.2,2130.3,3.51271526]
[1770662669887,4.61204552,2131.2,2130.3,0.001]
[1770662670089,0.002,2130.6,2130.3,0.001]
[1770662673506,4.56318149,2130.9,2130.3,0.001]
[1770662674278,3.4389683,2130.7,2130.3,0.001]
[1770662674716,3.4389683,2130.7,2130.1,0.001]
[1770662675396,4.61234669,2130.6,2130.1,0.001]
[1770662676191,1.17337839,2130.6,2130.1,0.001]
[1770662676391,1.17335854,2130.7,2130.1,0.001]
[1770662676707,4.45230054,2130.8,2130.1,0.001]
[1770662680730,7.89126884,2130.8,2130.1,0.001]
[1770662682198,7.89126884,2130.8,2130.3,0.001]
[1770662682407,0.002,2130.6,2130.3,0.001]
[1770662685116,3.4409683,2130.6,2130.1,0.001]
[1770662685348,1.01257453,2130.5,2130.1,0.001]
[1770662685546,0.002,2130.6,2130.1,0.001]
[1770662686451,1.17537839,2130.6,2130.1,0.001]
[1770662686631,1.01287355,2130.5,2130.1,0.001]
[1770662686949,1.17537839,2130.6,2130.1,0.001]
[1770662687454,1.01285527,2130.5,2130.1,0.001]
[1770662687659,1.17537839,2130.6,2130.1,0.001]
[1770662688121,1.01285839,2130.5,2130.1,0.001]
[1770662688324,1.17537839,2130.6,2130.1,0.001]
[1770662688541,1.17348854,2130.4,2130.1,0.001]
[1770662689651,0.002,2130.8,2130.3,3.36413418]
[1770662689849,0.002,2130.8,2130.2,0.05631688]
[1770662689850,1.17296484,2131.4,2130.4,3.36413418]
[1770662690147,0.004,2131.3,2130.4,3.36413418]
[1770662690334,0.002,2131.2,2130.4,3.36413418]
[1770662690540,0.002,2131.2,2130.5,1.17343346]
[1770662691329,0.002,2131.2,2130.5,4.53756764]
[1770662691625,0.002,2131.1,2130.6,3.36413418]
[1770662692749,0.002,2131.1,2130.7,1.17332332]
[1770662693252,0.002,2131.1,2130.6,1.17333892]
[1770662694547,0.002,2131.1,2130.4,1.17346033]
[1770662694738,3.52616173,2131.1,2130.3,0.001]
[1770662694943,4.69931987,2131.0,2130.3,0.001]
[1770662695147,0.002,2130.9,2130.3,0.001]
[1770662695339,3.52616173,2130.9,2130.3,0.001]
[1770662695538,0.002,2130.8,2130.3,0.001]
[1770662696824,1.17526825,2130.8,2130.3,0.001]
[1770662698468,0.002,2130.7,2130.3,0.001]
[1770662698767,3.52616173,2130.7,2130.3,0.001]
[1770662698952,1.17337839,2130.6,2130.3,0.001]
[1770662700153,0.002,2130.5,2130.3,0.001]
[1770662700529,3.52416173,2130.3,2130.0,0.001]
[1770662700857,3.52416173,2130.3,2129.5,1.17394367]
[1770662701028,1.17359872,2130.2,2129.4,4.69704363]
[1770662701568,4.69776045,2130.2,2129.4,1.17503963]
[1770662701730,4.69776045,2130.2,2129.4,0.001]
[1770662702052,1.17358487,2130.3,2129.4,0.001]
[1770662702651,3.52416173,2130.2,2129.4,0.001]
[1770662702846,3.279,2130.4,2129.4,3.36513418]
[1770662703050,1.17346388,2130.5,2129.6,3.36413418]
[1770662703249,4.69346488,2130.7,2129.6,3.36413418]
[1770662703468,3.52416173,2130.6,2129.6,3.36413418]
[1770662703877,3.279,2130.8,2129.6,3.36413418]
[1770662704063,0.002,2131.0,2129.9,3.36413418]
[1770662704641,0.002,2131.0,2130.3,3.36413418]
[1770662704942,0.002,2131.0,2130.5,3.36413418]
[1770662705142,0.002,2131.0,2130.4,1.17348854]
[1770662705369,0.002,2131.0,2130.5,3.36413418]
[1770662707053,0.002,2131.0,2130.6,1.17337839]
[1770662708275,0.002,2131.2,2130.7,3.36513418]
[1770662708468,0.002,2131.5,2130.7,3.36513418]
[1770662708972,0.002,2131.7,2130.7,3.36513418]
[1770662709275,0.002,2131.7,2130.8,4.53740243]
[1770662709574,0.002,2131.7,2130.9,3.36413418]
[1770662710673,0.002,2131.7,2130.8,1.17326825]
[1770662710977,3.52616173,2131.7,2130.7,1.17430095]
[1770662711275,0.002,2131.7,2130.8,3.36413418]
[1770662712458,0.002,2132.1,2131.3,3.59770448]
[1770662712657,1.17230464,2132.6,2131.5,3.42045106]
[1770662712858,1.17230464,2132.6,2131.6,3.36413418]
[1770662713177,4.68870553,2132.8,2131.7,1.1727729]
[1770662713366,8.21286726,2132.8,2131.7,1.1727729]
[1770662713568,4.69632977,2132.8,2131.7,1.1727729]
[1770662713878,1.17216804,2132.8,2131.7,4.53690708]
[1770662714069,8.21219339,2133.1,2131.8,3.36413418]
[1770662714070,1.17205813,2133.0,2131.8,3.36413418]
[1770662714460,3.52416173,2132.9,2131.7,1.1727729]
[1770662714879,1.17205813,2133.0,2131.8,3.36413418]
[1770662715258,1.1719815,2133.2,2132.1,4.53668706]
[1770662715580,1.1719815,2133.2,2132.1,1.17255288]
[1770662715750,3.45414845,2133.1,2131.8,4.69078256]
[1770662715951,3.45414845,2132.9,2131.9,1.17263658]
[1770662716153,3.45414845,2132.9,2131.8,1.17267815]
[1770662716482,3.45414845,2132.9,2132.0,1.17260485]
[1770662716647,1.1719815,2133.2,2132.0,4.7319321]
[1770662716848,3.45414845,2133.1,2132.0,1.17260485]
[1770662717267,1.17205813,2133.0,2131.8,1.17271789]
[1770662717472,1.17189331,2133.3,2132.0,3.55932725]
[1770662719299,0.003,2133.4,2132.3,3.24935366]
[1770662720694,0.002,2133.1,2132.2,0.2335703]
[1770662721391,0.002,2133.1,2132.3,1.1724429]
[1770662722288,3.40798938,2133.1,2132.0,4.69027939]
[1770662722486,0.002,2133.1,2132.2,1.17249254]
[1770662723096,0.002,2133.1,2132.1,1.17255271]
[1770662723298,1.17205813,2133.0,2132.0,4.69030212]
[1770662723962,3.40598938,2132.9,2132.0,1.17260787]
[1770662724688,3.40598938,2132.9,2131.9,1.17261908]
[1770662724887,3.40598938,2132.9,2131.8,1.17268772]
[1770662725286,3.40598938,2132.9,2131.7,4.69099958]
[1770662725287,1.17216804,2132.8,2131.7,4.69099958]
[1770662725592,3.40598938,2132.7,2131.6,1.17278435]
[1770662726310,1.17216804,2132.8,2131.6,1.17278435]
[1770662726590,1.17216804,2132.8,2131.6,4.42213801]
[1770662726988,3.40598938,2132.7,2131.6,1.17278435]
[1770662727288,1.17227797,2132.6,2131.6,1.17278435]
[1770662727795,3.40598938,2132.4,2131.0,3.24935366]
[1770662727961,3.40598938,2132.4,2131.2,1.17304185]
[1770662728162,3.40598938,2132.4,2131.5,1.17287624]
[1770662728362,3.277,2132.5,2131.5,1.17287624]
[1770662728820,1.17227797,2132.6,2131.5,4.4222299]
[1770662729098,1.17227797,2132.6,2131.5,1.17287624]
[1770662729306,3.40598938,2132.5,2131.5,1.17287624]
[1770662729481,3.40598938,2132.5,2131.2,4.74850858]
[1770662729482,4.57837729,2132.4,2131.3,1.172993]
[1770662730411,4.57837729,2132.4,2131.3,4.42234666]
[1770662730412,1.17238791,2132.4,2131.3,4.42234666]
[1770662731687,4.68952362,2132.6,2131.4,3.30567054]
[1770662732213,3.40598938,2132.5,2131.4,0.05631688]
[1770662732388,3.40598938,2132.5,2131.3,1.172993]
[1770662733113,3.46230626,2132.5,2131.1,1.17306104]
[1770662733321,3.40598938,2132.3,2131.1,1.17306104]
[1770662733615,4.57848726,2132.2,2131.7,0.001]
[1770662733817,3.277,2132.1,2131.7,0.001]
[1770662734205,1.17238791,2132.4,2131.7,0.001]
[1770662735305,4.57837729,2132.4,2131.7,0.001]
[1770662737016,3.40598938,2132.3,2131.7,0.001]
[1770662737806,3.40598938,2132.1,2130.8,3.24935366]
[1770662738009,3.40598938,2131.9,2130.9,1.17321156]
[1770662739133,3.40598938,2131.9,2130.7,0.001]
[1770662739724,4.57870727,2131.8,2130.7,0.001]
[1770662739920,3.40598938,2131.7,2130.7,0.001]
[1770662740127,1.00729788,2131.6,2130.5,0.001]
[1770662740442,3.40598938,2131.0,2130.2,0.001]
[1770662740635,0.05631688,2131.3,2130.2,0.001]
[1770662740636,6.68298938,2130.9,2130.2,0.001]
[1770662740812,3.40598938,2130.8,2130.2,0.001]
[1770662741011,3.46230626,2130.8,2130.0,0.001]
[1770662741210,3.46230626,2130.8,2129.6,0.001]
[1770662741211,3.46230626,2130.6,2129.6,0.001]
[1770662741412,3.40598938,2130.3,2129.6,0.001]
[1770662741645,3.40598938,2129.8,2129.3,0.001]
[1770662741939,4.57986363,2129.7,2129.2,0.001]
[1770662742113,3.277,2129.6,2129.2,0.001]
[1770662742313,6.68298938,2129.6,2128.3,3.25035366]
[1770662743041,3.40598938,2129.2,2128.3,0.001]
[1770662743612,3.40598938,2129.0,2128.3,0.001]
[1770662743815,1.17437053,2128.8,2128.3,0.001]
[1770662744138,3.40598938,2128.7,2127.2,3.25035366]
[1770662744436,3.46230626,2128.7,2127.2,1.17622618]
[1770662744635,3.40598938,2128.7,2127.4,1.17512329]
[1770662745247,3.46230626,2128.7,2127.4,1.17512329]
[1770662745753,3.40598938,2128.7,2127.4,1.17512329]
[1770662745953,4.45348087,2128.6,2127.3,3.27313645]
[1770662746450,3.23146612,2128.2,2127.2,0.001]
[1770662746654,3.23146612,2128.0,2127.2,0.001]
[1770662746836,3.28,2127.9,2127.2,0.001]
[1770662747552,4.0,2128.5,2127.4,0.001]
[1770662747751,3.28,2128.2,2127.4,0.001]
[1770662748055,4.45470534,2128.2,2127.4,0.001]
[1770662749864,7.9865895,2128.5,2127.4,0.001]
[1770662749865,1.17481203,2128.0,2127.4,0.001]
[1770662750858,3.281,2128.1,2127.4,0.001]
[1770662751158,3.281,2128.1,2127.4,3.27413645]
[1770662751932,3.281,2128.1,2127.5,1.17508813]
[1770662752831,1.17437053,2128.8,2127.5,4.44822458]
[1770662753031,3.281,2128.7,2127.5,4.44822458]
[1770662753326,3.281,2128.7,2127.2,0.001]
[1770662753327,3.23146612,2128.3,2127.2,0.001]
[1770662753563,0.05631688,2128.4,2127.0,0.001]
[1770662753564,3.287783,2127.7,2127.0,0.001]
[1770662753859,3.287783,2127.7,2126.7,0.001]
[1770662753860,3.287783,2127.7,2125.7,3.27313645]
[1770662753861,1.17525385,2127.2,2125.7,3.27313645]
[1770662754028,4.40671997,2127.2,2125.8,1.17602784]
[1770662754225,3.287783,2127.1,2125.6,1.17613014]
[1770662754457,3.23146612,2126.9,2125.7,1.17607432]
[1770662754758,3.282,2126.8,2125.7,1.17607432]
[1770662754929,0.05631688,2127.1,2125.7,1.17607432]
[1770662755136,1.17525385,2127.2,2125.7,4.44921077]
[1770662755137,3.282,2127.0,2125.7,4.44921077]
[1770662755452,3.282,2127.0,2125.7,1.17607432]
[1770662755650,6.51346612,2127.0,2125.7,1.17607432]
[1770662755853,1.17541962,2126.9,2125.6,3.27313645]
[1770662756635,7.98367849,2127.0,2125.6,3.27313645]
[1770662756636,4.45740233,2127.0,2125.6,3.27313645]
[1770662756873,3.282,2127.0,2125.8,3.32945333]
[1770662757076,4.45736798,2127.0,2125.8,3.32945333]
[1770662757982,3.282,2127.0,2126.0,3.27313645]
[1770662758196,3.23146612,2127.5,2126.0,3.27313645]
[1770662758362,1.17497767,2127.7,2126.6,3.27313645]
[1770662758946,1.17481203,2128.0,2126.6,3.27313645]
[1770662759399,1.17481203,2128.0,2126.8,3.27313645]
[1770662759676,0.002,2128.1,2126.8,3.27313645]
[1770662759677,1.17679103,2128.1,2126.8,3.27313645]
[1770662759886,1.17679103,2128.1,2127.0,3.27313645]
[1770662760261,0.002,2128.1,2127.1,1.1753091]
[1770662761075,0.002,2128.1,2127.2,3.27313645]
[1770662761273,0.002,2128.1,2127.3,3.32945333]
[1770662761498,0.002,2128.1,2127.3,3.27313645]
[1770662761903,0.002,2128.1,2127.4,3.32945333]
[1770662762275,0.002,2128.1,2127.5,4.44822458]
[1770662762468,0.002,2128.1,2127.6,3.27313645]
[1770662764100,0.002,2128.3,2127.6,3.32945333]
[1770662764602,0.002,2128.3,2127.7,1.17497767]
[1770662765379,0.002,2129.2,2128.3,3.27313645]
[1770662765585,3.23146612,2130.2,2128.5,3.27313645]
[1770662765808,3.23146612,2130.2,2128.9,0.05631688]
[1770662766183,4.69423918,2130.3,2128.9,0.05631688]
[1770662766384,0.05631688,2129.9,2128.1,3.27313645]
[1770662766579,3.287783,2129.7,2128.0,1.17481203]
[1770662766981,3.287783,2129.5,2128.0,1.17481203]
[1770662767805,3.23146612,2129.5,2128.0,4.44794848]
[1770662768187,3.23146612,2129.5,2127.9,1.17484353]
[1770662768540,3.23146612,2128.9,2127.2,3.27313645]
[1770662768819,6.51446612,2128.8,2127.6,1.17503276]
[1770662769106,3.23146612,2128.7,2127.6,1.17503276]
[1770662769782,3.287783,2128.7,2127.4,4.70056515]
[1770662770003,3.23146612,2129.1,2127.7,0.05631688]
[1770662770403,1.17426021,2129.0,2127.8,1.17492245]
[1770662771112,1.17426021,2129.0,2127.9,0.05631688]
[1770662771317,1.17406173,2129.4,2128.0,3.50670675]
[1770662771511,1.17381913,2129.8,2128.4,0.05631688]
[1770662771695,1.17381913,2129.8,2128.4,3.32945333]
[1770662771887,7.92671356,2129.9,2128.5,0.2335703]
[1770662772087,1.17374922,2130.0,2128.8,0.05631688]
[1770662772488,7.97774348,2130.1,2129.0,0.05631688]
[1770662772489,0.002,2129.6,2129.0,0.05631688]
[1770662772814,4.40483303,2130.7,2129.3,0.05631688]
[1770662773119,4.40483303,2130.7,2129.1,3.27313645]
[1770662773418,1.17336691,2130.7,2129.2,3.56302363]
[1770662773612,1.17536691,2130.7,2129.2,3.56302363]
[1770662773820,1.17536691,2130.7,2129.2,3.32945333]
[1770662774115,1.17536691,2130.7,2129.0,0.1024]
[1770662774116,3.287783,2130.5,2129.0,0.1024]
[1770662774286,3.287783,2130.5,2128.9,1.17431537]
[1770662774487,3.23146612,2130.3,2128.9,0.1024]
[1770662775193,3.287783,2130.3,2128.8,4.69726149]
[1770662775899,3.23146612,2130.3,2128.8,4.75357837]
[1770662776625,1.17359872,2130.2,2128.8,4.75357837]
[1770662776790,3.44543566,2130.1,2128.8,4.69726149]
[1770662776989,3.44543566,2130.1,2128.8,4.75357837]
[1770662777894,1.17359872,2130.2,2128.9,3.3123556]
[1770662778303,1.17359872,2130.2,2128.8,4.69726149]
[1770662778707,1.17359872,2130.2,2128.7,1.17437053]
[1770662778888,1.17359872,2130.2,2128.8,0.05631688]
[1770662779323,1.17337839,2130.6,2128.8,3.67082447]
[1770662779493,0.002,2130.7,2129.4,3.56842447]
[1770662779811,1.17533104,2130.7,2129.4,3.56842447]
[1770662780415,0.002,2130.7,2129.6,0.05631688]
[1770662780613,0.002,2130.7,2129.7,1.17387425]
[1770662781912,0.002,2130.7,2129.8,3.56842447]
[1770662782745,0.002,2130.7,2129.9,1.17376402]
[1770662783349,1.17288294,2131.5,2130.2,0.05631688]
[1770662783553,1.17288294,2131.5,2130.2,3.56842447]
[1770662785057,4.69110237,2131.7,2130.3,1.17354363]
[1770662785356,4.69110237,2131.7,2130.2,1.17359589]
[1770662785357,0.002,2130.5,2130.2,1.17359589]
[1770662785655,3.35015101,2131.3,2130.2,1.17359589]
[1770662785822,0.002,2130.7,2130.2,1.17359589]
[1770662786759,0.002,2130.7,2129.9,0.001]
[1770662796228,0.002,2130.7,2129.9,3.51310759]
[1770662796488,0.002,2131.6,2130.4,4.74191301]
[1770662797647,0.002,2131.6,2130.6,3.56842447]
[1770662797884,0.002,2131.6,2130.8,0.05631688]
[1770662798089,0.002,2131.6,2130.8,3.56842447]
[1770662798297,0.002,2131.4,2130.8,3.56842447]
[1770662798463,0.002,2131.6,2131.1,3.51210759]
[1770662798790,1.17452842,2132.2,2131.1,3.51210759]
[1770662798962,1.17452842,2132.2,2130.9,1.17321319]
[1770662800979,4.52467943,2132.2,2130.9,1.17321319]
[1770662801897,1.17452842,2132.2,2131.0,3.51210759]
[1770662802191,3.35015101,2132.1,2130.8,1.17324402]
[1770662802375,3.35015101,2132.1,2130.7,4.69328454]
[1770662802376,3.35015101,2131.8,2130.7,1.17328173]
[1770662802579,3.40646789,2131.7,2130.2,1.17357416]
[1770662802784,3.40646789,2131.7,2130.1,1.1736296]
[1770662802785,3.40646789,2131.5,2130.1,1.1736296]
[1770662802965,3.35015101,2131.2,2129.9,1.17476402]
[1770662805273,1.17310309,2131.1,2129.9,1.17476402]
[1770662805684,1.172993,2131.3,2130.0,3.47829021]
[1770662806090,4.45195553,2131.4,2130.2,3.47829021]
[1770662806990,1.25241572,2132.1,2131.2,0.05631688]
[1770662807173,4.68875657,2132.8,2131.4,3.92890223]
[1770662807375,1.17416804,2132.9,2131.4,3.92890223]
[1770662807376,0.002,2132.9,2131.5,1.22919982]
[1770662807682,0.002,2132.9,2131.5,1.17288294]
[1770662807887,0.002,2132.9,2131.6,3.279]
[1770662809378,0.002,2132.9,2131.7,1.1727729]
[1770662810404,0.002,2132.7,2131.7,1.1727729]
[1770662813707,3.56732669,2132.6,2131.6,1.17282728]
[1770662814386,3.51100981,2132.6,2131.6,1.17282728]
[1770662814803,0.002,2132.7,2131.7,3.75794363]
[1770662814979,0.002,2132.7,2131.8,3.42197333]
[1770662815398,0.002,2132.7,2131.9,1.17266288]
[1770662819393,0.002,2132.7,2131.8,4.69065153]
[1770662819682,0.002,2132.7,2131.8,8.11262486]
[1770662821594,0.002,2132.7,2131.8,4.69065153]
[1770662822915,0.002,2132.7,2131.9,0.001]
[1770662823108,0.002,2132.5,2131.9,0.001]
[1770662823706,3.51300981,2132.5,2131.9,0.001]
[1770662824088,0.002,2132.5,2131.9,0.001]
[1770662824726,0.002,2132.7,2131.9,0.001]
[1770662826004,0.002,2132.7,2131.9,3.42297333]
[1770662826314,0.002,2132.7,2132.2,3.42197333]
[1770662826888,0.002,2132.9,2132.2,3.42197333]
[1770662827193,0.002,2132.9,2131.9,0.1034]
[1770662827605,0.002,2132.9,2132.0,1.17260787]
[1770662827914,0.002,2132.9,2132.1,3.65554363]
[1770662828286,0.002,2132.9,2132.1,3.42197333]
[1770662830009,0.002,2132.9,2132.2,1.40606818]
[1770662831103,0.002,2132.9,2132.2,1.17249788]
[1770662831612,0.002,2132.9,2132.3,3.81426051]
[1770662831827,0.002,2132.9,2132.3,1.17239868]
[1770662832919,3.51300981,2132.9,2132.0,1.17257349]
[1770662833218,3.51300981,2132.9,2132.3,1.17243435]
[1770662833409,3.51300981,2132.9,2131.9,0.001]
[1770662833607,3.51300981,2132.9,2132.1,1.1725453]
[1770662833797,4.68317785,2132.8,2131.9,0.001]
[1770662834221,3.51100981,2132.7,2131.9,0.001]
[1770662834403,3.51100981,2132.5,2131.9,0.001]
[1770662834928,4.68317785,2132.8,2131.9,0.001]
[1770662835092,1.17216804,2132.8,2131.9,0.001]
[1770662835296,3.51100981,2132.7,2132.1,0.001]
[1770662835693,3.62642669,2132.6,2132.1,0.001]
[1770662835900,1.17233294,2132.5,2132.1,0.001]
[1770662836420,4.79872124,2132.6,2132.1,0.001]
[1770662836610,3.62442669,2132.5,2131.9,0.001]
[1770662838009,1.17238791,2132.4,2131.9,0.001]
[1770662838297,3.276,2132.3,2131.9,0.001]
[1770662840322,1.17249788,2132.2,2131.9,0.001]
[1770662840728,0.002,2132.6,2131.9,0.001]
[1770662841724,0.002,2132.6,2132.0,3.55677736]
[1770662842115,0.002,2132.6,2132.1,1.17255288]
[1770662843098,0.002,2132.6,2132.0,1.17260617]
[1770662843506,0.002,2132.6,2131.9,1.17362279]
[1770662843912,3.49854577,2132.6,2131.9,0.001]
[1770662844225,1.17233294,2132.5,2131.9,0.001]
[1770662845100,4.6708672,2132.6,2131.9,0.001]
[1770662847537,3.49654577,2132.5,2131.9,0.001]
[1770662847717,3.49654577,2132.5,2132.1,0.001]
[1770662848122,3.49654577,2132.5,2131.9,0.001]
[1770662848325,3.49654577,2132.3,2131.6,0.001]
[1770662848521,3.277,2132.2,2131.6,0.001]
[1770662848722,6.77354577,2132.2,2131.6,0.001]
[1770662848944,3.49654577,2131.9,2131.0,0.001]
[1770662849935,3.49654577,2131.7,2131.0,0.001]
[1770662850140,3.49654577,2131.5,2130.8,0.001]
[1770662850339,3.49654577,2131.3,2130.8,0.001]
[1770662852111,1.17293797,2131.4,2130.8,0.001]
[1770662852332,8.18829767,2131.5,2130.8,0.001]
[1770662852537,1.17288294,2131.5,2130.8,0.001]
[1770662852726,3.277,2131.4,2130.8,0.001]
[1770662854252,1.172993,2131.3,2130.8,0.001]
[1770662854825,3.277,2131.4,2130.8,0.001]
[1770662855840,4.4499413,2131.4,2130.8,0.001]
[1770662856231,3.277,2131.4,2130.8,0.001]
[1770662856437,3.277,2131.3,2130.8,0.001]
[1770662860466,3.277,2131.3,2131.0,0.001]
[1770662861666,2.34593715,2131.2,2131.0,0.001]
[1770662861963,4.45072627,2131.8,2131.0,0.001]
[1770662863643,3.278,2131.8,2131.0,0.001]
[1770662864164,3.278,2131.8,2131.0,3.55777736]
[1770662864940,1.17438865,2132.4,2131.2,3.55677736]
[1770662865155,0.002,2132.4,2131.4,4.72971533]
[1770662865368,0.002,2132.4,2131.5,3.61889818]
[1770662865575,0.002,2132.4,2131.4,1.17293797]
[1770662865576,0.002,2132.6,2131.7,3.61889818]
[1770662865749,0.002,2132.8,2131.9,3.67521506]
[1770662865941,0.002,2133.1,2132.1,3.90878536]
[1770662866343,0.002,2133.1,2132.3,3.90878536]
[1770662866742,0.002,2133.1,2132.5,3.61889818]
[1770662867145,0.002,2133.1,2132.6,1.17227797]
[1770662868038,0.003,2133.4,2132.6,1.17227797]
[1770662868243,0.003,2133.4,2132.6,4.79117615]
[1770662868670,0.002,2133.5,2132.7,3.61889818]
[1770662869271,3.49198969,2133.5,2132.3,4.68963919]
[1770662869437,3.49198969,2133.5,2132.5,1.1722998]
[1770662869642,3.49198969,2133.5,2132.6,1.17227684]
[1770662869843,3.49198969,2133.5,2132.7,1.17222121]
[1770662870062,0.002,2133.5,2132.7,1.17222121]
[1770662870850,3.49198969,2133.5,2132.5,1.17229651]
[1770662871045,3.49198969,2133.5,2132.6,1.17223675]
[1770662871369,1.17183838,2133.4,2132.2,1.17249788]
[1770662871571,4.6637753,2133.5,2132.2,4.84771294]
[1770662872145,4.6637753,2133.5,2132.2,8.12471294]
[1770662872484,0.002,2132.9,2132.3,3.61889818]
[1770662872656,0.002,2132.9,2132.2,1.17249788]
[1770662873347,0.002,2132.9,2132.1,1.17255288]
[1770662875071,0.002,2132.9,2132.1,4.79145106]
[1770662875253,0.002,2132.9,2132.2,3.61889818]
[1770662875709,0.002,2133.1,2132.3,4.79134108]
[1770662875986,4.68486412,2134.6,2133.2,3.61889818]
[1770662876191,4.6833202,2135.3,2133.2,6.89489818]
[1770662876192,3.48998969,2134.5,2133.2,6.89489818]
[1770662876395,1.1713678,2134.3,2133.2,3.61889818]
[1770662876553,1.171274,2134.5,2133.4,3.61889818]
[1770662876753,1.1712955,2134.4,2133.4,3.61889818]
[1770662876951,1.17079567,2135.3,2133.8,3.61889818]
[1770662877151,1.17079567,2135.3,2133.7,11.34703547]
[1770662877152,3.48998969,2135.3,2133.9,3.77761506]
[1770662877351,3.48998969,2135.3,2133.9,6.99729818]
[1770662877559,1.1708505,2135.2,2134.0,1.1715089]
[1770662877853,1.1708505,2135.2,2133.9,1.17152323]
[1770662877854,3.48998969,2135.1,2133.9,1.17152323]
[1770662878073,3.48998969,2135.1,2133.9,1.17154932]
[1770662878473,3.48998969,2135.1,2133.8,1.1715899]
[1770662878782,3.48998969,2135.1,2133.9,1.17155395]
[1770662878973,4.4468505,2135.2,2133.9,4.79045213]
[1770662879991,4.4468505,2135.2,2134.0,3.67521506]
[1770662880773,4.44685071,2135.2,2134.0,3.67521506]
[1770662880959,1.17085071,2135.2,2134.0,3.67521506]
[1770662881993,8.17323358,2135.3,2134.1,1.171454]
[1770662882191,3.275,2135.7,2134.2,3.95486848]
[1770662882374,1.17066788,2135.6,2134.4,3.67521506]
[1770662882763,1.17052158,2135.8,2134.4,3.67521506]
[1770662883364,3.48998969,2135.7,2134.2,0.1024]
[1770662883567,3.48998969,2135.7,2134.4,3.61889818]
[1770662883787,1.1706312,2135.6,2134.5,1.17123448]
[1770662883995,4.68178632,2136.0,2134.7,3.61889818]
[1770662884288,3.48998969,2135.9,2134.6,0.1024]
[1770662884464,3.48998969,2135.9,2134.6,3.61889818]
[1770662884659,1.17041198,2136.0,2134.6,3.61889818]
[1770662884984,1.17041198,2136.0,2134.7,3.5075703]
[1770662885375,1.17041198,2136.0,2134.7,7.12646848]
[1770662885567,1.17041198,2136.0,2134.7,3.274]
[1770662885783,4.68157704,2136.1,2134.7,3.274]
[1770662885784,4.65985398,2137.0,2135.4,15.19950395]
[1770662886095,1.41448729,2137.1,2135.8,0.2335703]
[1770662886268,3.48998969,2138.0,2136.1,3.61889818]
[1770662886471,1.16942651,2137.9,2136.4,3.90878536]
[1770662886789,0.002,2136.7,2136.4,3.90878536]
[1770662886987,4.6594162,2137.9,2136.4,3.61889818]
[1770662887291,4.81992303,2138.4,2136.2,14.67735235]
[1770662887292,1.16893439,2138.7,2137.4,14.96593365]
[1770662887491,0.24446681,2138.8,2137.9,3.67521506]
[1770662887672,1.16849731,2139.5,2137.9,3.61889818]
[1770662887859,3.48998969,2139.2,2137.6,1.40310622]
[1770662888065,3.48998969,2138.9,2137.0,0.05631688]
[1770662888273,3.48998969,2138.1,2136.1,14.96593365]
[1770662888474,3.48998969,2137.9,2136.4,0.05631688]
[1770662888693,3.48998969,2137.9,2136.6,0.05631688]
[1770662888987,3.48998969,2137.9,2136.7,1.16999625]
[1770662889187,3.48998969,2137.9,2136.6,1.17004442]